bitfinex-derivatives/quotes_ETHF0:USTF0_20260118
["timestamp","ask_amount","ask_price","bid_price","bid_amount"]
[1768780054562,2.67614655,3294.0,3292.0,0.00361406]
[1768780055166,2.67614655,3293.8,3290.3,2.89696442]
[1768780055367,0.15189,3292.9,3289.6,2.89696442]
[1768780055562,2.67614655,3293.1,3289.2,3.19006]
[1768780055563,2.67614655,3292.5,3289.2,3.19006]
[1768780055760,2.82807655,3292.1,3289.2,3.038]
[1768780055971,2.67614655,3291.9,3289.2,3.038]
[1768780056267,2.67614655,3291.9,3289.6,0.15204]
[1768780056268,0.0030541,3291.9,3289.6,0.15204]
[1768780056864,2.67920065,3291.9,3289.3,43.69696442]
[1768780057064,2.67920065,3291.9,3289.8,0.15203]
[1768780057460,2.67920065,3291.9,3289.9,0.15203]
[1768780057658,0.0030541,3291.9,3289.6,2.87775297]
[1768780057860,2.9691627,3293.5,3290.7,0.15199]
[1768780058060,2.9691627,3293.3,3290.7,0.15199]
[1768780058261,2.9691627,3293.3,3289.8,2.87775297]
[1768780058462,2.9691627,3293.3,3290.6,0.15199]
[1768780058770,2.97267013,3293.3,3290.0,2.87775297]
[1768780059064,2.9691627,3293.1,3290.0,2.87775297]
[1768780059567,2.9691627,3293.1,3291.0,0.15197]
[1768780059869,1.02242921,3293.0,3290.0,0.15202]
[1768780060063,2.9691627,3292.8,3289.3,2.87775297]
[1768780060370,2.06159446,3292.9,3289.3,2.87775297]
[1768780060371,1.03916525,3292.5,3289.4,0.15205]
[1768780060572,2.9691627,3291.8,3288.7,2.662]
[1768780060772,2.9691627,3291.6,3289.3,40.8]
[1768780060961,2.9691627,3291.4,3289.2,0.00285755]
[1768780061161,2.9691627,3291.2,3289.2,0.00285755]
[1768780061374,2.9691627,3291.0,3289.2,0.00285755]
[1768780061564,2.9691627,3290.8,3289.2,0.00285755]
[1768780061865,2.9691627,3290.4,3288.0,0.15212]
[1768780062061,0.00220347,3290.8,3289.4,0.00608]
[1768780062760,2.9691627,3290.6,3289.4,0.00883811]
[1768780062966,0.00220347,3290.8,3289.4,0.00883811]
[1768780063280,2.9691627,3290.6,3288.1,40.8]
[1768780063477,2.9691627,3290.4,3287.9,0.15212]
[1768780063662,2.9691627,3290.2,3287.9,0.15212]
[1768780063857,1.02366383,3290.1,3287.9,0.15212]
[1768780064069,1.02366383,3290.0,3287.9,0.15212]
[1768780064272,2.9691627,3290.2,3287.9,0.15212]
[1768780064273,2.9691627,3290.2,3288.2,0.1521]
[1768780064767,2.9691627,3290.2,3287.9,0.00394138]
[1768780064962,2.9691627,3290.0,3287.9,0.00394138]
[1768780065166,2.06256191,3290.1,3287.9,0.00394138]
[1768780065167,2.9691627,3289.8,3287.9,0.00394138]
[1768780065564,2.9691627,3290.6,3288.3,0.1521]
[1768780065759,1.03916525,3290.7,3287.9,0.00394138]
[1768780065760,2.9691627,3290.4,3287.9,0.00394138]
[1768780065965,2.9691627,3290.2,3287.9,0.00394138]
[1768780066169,1.04136872,3290.8,3287.9,2.88169435]
[1768780066471,0.00220347,3290.8,3289.4,0.15205]
[1768780066676,0.00220347,3290.8,3288.0,3.32765055]
[1768780066677,1.03916525,3292.8,3289.8,2.87775297]
[1768780066974,2.9691627,3293.0,3290.2,2.87775297]
[1768780067172,2.9691627,3293.0,3291.2,0.15197]
[1768780067365,2.9691627,3292.8,3290.2,3.02976297]
[1768780067666,2.97182061,3292.8,3290.3,3.04]
[1768780067871,2.97182061,3292.8,3290.7,0.15199]
[1768780068264,2.9691627,3292.6,3290.3,3.04]
[1768780068468,0.00265791,3292.8,3290.3,5.91775297]
[1768780068667,0.00265791,3292.8,3290.8,0.15199]
[1768780068882,2.97182061,3292.8,3290.3,3.04]
[1768780069173,2.9691627,3292.6,3290.2,0.00217978]
[1768780069376,2.9691627,3292.4,3290.2,0.00217978]
[1768780069574,0.00265791,3292.8,3290.2,2.87993275]
[1768780069773,0.00265791,3292.8,3290.8,0.15198]
[1768780069774,1.02572233,3292.7,3290.8,0.15198]
[1768780069972,3.99488503,3292.6,3290.2,0.00217978]
[1768780070166,1.02572233,3292.5,3290.5,0.152]
[1768780070365,2.9691627,3292.6,3290.8,0.15199]
[1768780070563,0.00265791,3292.8,3290.2,2.87993275]
[1768780070770,1.03916525,3293.6,3290.9,2.87775297]
[1768780070970,2.57254768,3294.4,3290.9,2.87775297]
[1768780070971,1.03916525,3294.3,3292.9,0.15189]
[1768780071163,1.03916525,3294.3,3290.3,3.32669738]
[1768780071164,1.03916525,3294.7,3292.0,40.8]
[1768780071368,2.9691627,3294.7,3292.1,0.15192]
[1768780071563,2.9691627,3294.3,3292.0,43.839]
[1768780071765,2.97187313,3294.3,3292.6,0.1519]
[1768780072370,2.97187313,3294.3,3292.0,40.8036432]
[1768780072767,4.01103838,3294.3,3292.0,40.8036432]
[1768780072970,2.47142628,3294.1,3292.0,0.0036432]
[1768780073173,2.47142628,3293.6,3292.0,0.0036432]
[1768780073470,2.47142628,3293.6,3290.4,40.8]
[1768780073471,2.47142628,3292.9,3290.4,40.8]
[1768780073674,0.78430214,3292.7,3290.4,40.8]
[1768780073871,2.47142628,3292.6,3290.3,3.039]
[1768780074268,2.47142628,3292.6,3290.5,0.152]
[1768780074478,2.47142628,3292.1,3290.5,0.00367875]
[1768780074676,2.47142628,3292.0,3290.5,0.00367875]
[1768780077385,2.47142628,3291.8,3290.5,0.00367875]
[1768780077680,2.47386209,3291.8,3290.5,0.00367875]
[1768780078272,0.78430214,3291.5,3289.0,0.15207]
[1768780078467,2.47142628,3291.2,3289.0,0.15207]
[1768780078873,2.47142628,3291.0,3289.0,0.15207]
[1768780079068,2.47142628,3291.0,3289.1,0.15206]
[1768780079270,1.03916525,3291.5,3289.1,0.00370921]
[1768780079475,2.47142628,3292.7,3290.9,0.15198]
[1768780080078,2.47142628,3292.7,3291.0,0.15198]
[1768780080281,3.75340675,3294.0,3290.6,3.039]
[1768780080282,4.03634293,3293.5,3290.6,3.039]
[1768780080475,2.47417164,3293.5,3290.7,1.57928309]
[1768780080679,2.47417164,3293.5,3291.4,0.15196]
[1768780080882,4.03908829,3293.5,3290.5,0.152]
[1768780081180,4.03908829,3293.5,3288.5,1.94643058]
[1768780081181,2.47142628,3292.5,3290.3,3.039]
[1768780081382,4.03634293,3292.2,3289.6,0.15204]
[1768780081583,4.03634293,3292.2,3287.8,21.277]
[1768780081584,2.47142628,3291.9,3288.7,0.15208]
[1768780081884,2.47142628,3291.5,3288.3,4.5022098]
[1768780082284,2.47142628,3291.5,3289.0,0.15207]
[1768780082477,2.47142628,3291.5,3289.5,0.15205]
[1768780082785,2.47142628,3291.5,3289.0,3.039]
[1768780082981,2.47142628,3291.3,3289.0,0.15207]
[1768780083288,2.47142628,3291.1,3289.4,0.15205]
[1768780083481,2.47462223,3291.1,3289.5,0.15205]
[1768780083781,2.07968693,3292.5,3290.2,0.15201]
[1768780083782,2.47142628,3292.5,3290.2,0.15201]
[1768780083983,2.47142628,3292.5,3290.7,0.15199]
[1768780084187,2.47142628,3292.5,3290.8,3.039]
[1768780084375,2.47142628,3293.2,3291.7,0.15194]
[1768780084574,2.47142628,3293.9,3292.2,0.15192]
[1768780084780,0.00327494,3293.9,3292.8,0.15189]
[1768780085083,2.47142628,3295.3,3293.4,0.15186]
[1768780085590,2.47142628,3295.1,3292.6,0.1519]
[1768780085791,2.47142628,3294.9,3292.7,3.039]
[1768780086080,2.47142628,3294.7,3292.2,0.00259437]
[1768780086285,1.02631996,3294.6,3292.2,3.04159437]
[1768780086484,2.47142628,3294.4,3292.2,3.04159437]
[1768780086685,2.47142628,3294.2,3292.2,0.00259437]
[1768780086985,0.00255004,3294.9,3292.2,0.00259437]
[1768780086986,2.47142628,3294.0,3292.2,0.00259437]
[1768780087387,2.47142628,3293.8,3292.2,0.00259437]
[1768780087585,2.47142628,3293.6,3291.1,0.15197]
[1768780087783,2.47142628,3293.4,3291.1,0.15197]
[1768780088184,2.47142628,3293.4,3290.5,40.8]
[1768780088389,2.47142628,3293.2,3290.5,40.8]
[1768780088585,2.47142628,3293.2,3290.6,0.15199]
[1768780088785,2.47142628,3293.2,3290.7,0.15199]
[1768780089091,2.47142628,3293.2,3291.1,0.15197]
[1768780089788,2.47142628,3293.0,3290.5,0.00301855]
[1768780089993,2.47142628,3292.8,3290.5,0.00301855]
[1768780090187,2.47142628,3292.6,3290.5,0.00301855]
[1768780090394,2.47142628,3292.6,3291.0,0.15198]
[1768780090685,2.47142628,3293.3,3290.5,0.00301855]
[1768780090892,2.47142628,3293.1,3290.5,0.00301855]
[1768780091084,2.47142628,3293.1,3290.8,0.15198]
[1768780091392,2.47142628,3293.1,3290.5,0.00301855]
[1768780091592,2.47142628,3292.9,3290.5,0.00301855]
[1768780091793,2.47142628,3292.7,3290.5,0.00301855]
[1768780091986,2.47142628,3292.7,3290.5,40.80301855]
[1768780092192,2.47142628,3292.7,3290.5,0.00301855]
[1768780092392,2.47142628,3292.7,3290.5,0.15501855]
[1768780092688,2.47142628,3292.7,3290.6,40.952]
[1768780092890,1.57571114,3293.8,3290.5,0.00301855]
[1768780092891,2.47142628,3292.5,3290.5,0.00301855]
[1768780093085,2.47142628,3292.3,3290.5,0.00301855]
[1768780093392,2.47142628,3292.3,3290.5,40.95501855]
[1768780094180,2.47142628,3292.3,3290.5,0.15501855]
[1768780094399,1.02581332,3292.2,3290.5,0.00301855]
[1768780094599,3.49115463,3292.1,3289.6,0.15204]
[1768780094895,1.02576668,3292.0,3289.4,3.039]
[1768780095085,1.02576668,3291.9,3289.6,0.15204]
[1768780095286,0.00348722,3292.5,3289.4,3.039]
[1768780095287,1.02710951,3291.8,3289.4,3.039]
[1768780095496,1.02716134,3291.7,3289.4,3.039]
[1768780095690,1.02716134,3291.6,3289.4,3.04142865]
[1768780095891,1.02716134,3291.5,3289.4,3.04142865]
[1768780096195,1.02705956,3291.4,3289.4,3.04142865]
[1768780096387,1.02705956,3291.3,3289.4,3.04142865]
[1768780096595,4.04183586,3292.0,3289.4,0.00242865]
[1768780096789,2.47142628,3291.7,3289.4,0.00242865]
[1768780096981,2.47142628,3291.5,3289.4,0.00242865]
[1768780097183,2.47142628,3291.3,3289.4,0.00242865]
[1768780097396,2.47142628,3291.1,3289.4,0.00242865]
[1768780097895,2.47142628,3291.8,3289.4,0.00242865]
[1768780098095,2.47142628,3291.8,3290.1,0.15202]
[1768780098392,2.47142628,3291.8,3289.4,0.00242865]
[1768780098393,2.47142628,3292.6,3289.9,3.039]
[1768780098593,2.47142628,3292.6,3290.7,0.15199]
[1768780098799,2.4749135,3292.5,3290.7,0.15199]
[1768780099089,2.4749135,3292.5,3289.9,3.039]
[1768780099492,2.47142628,3292.3,3289.9,3.039]
[1768780099896,2.47142628,3292.3,3290.3,0.15201]
[1768780100497,2.47142628,3292.1,3289.9,3.039]
[1768780100795,2.47142628,3291.9,3289.9,3.039]
[1768780100983,2.47142628,3291.9,3289.9,3.19103]
[1768780101185,2.47142628,3291.9,3289.9,3.039]
[1768780101597,2.47142628,3291.9,3290.0,0.15202]
[1768780101995,2.47142628,3291.7,3289.9,3.039]
[1768780102198,1.02838079,3291.6,3289.5,40.8]
[1768780102398,2.47142628,3291.4,3289.4,0.00242865]
[1768780102699,1.702433,3291.2,3289.4,0.00242865]
[1768780102902,1.02838079,3291.1,3289.4,0.00242865]
[1768780103091,1.02838079,3291.1,3288.9,3.039]
[1768780103092,1.02838079,3291.0,3288.9,3.039]
[1768780103290,1.02838079,3290.9,3288.2,0.1521]
[1768780103490,1.02838079,3290.8,3288.2,0.1521]
[1768780103690,0.152,3290.6,3287.6,40.8]
[1768780103990,2.59879037,3290.5,3287.6,0.00394425]
[1768780104185,1.02838079,3290.4,3287.6,0.00394425]
[1768780104397,1.02838079,3290.3,3287.6,0.00394425]
[1768780104592,1.02838079,3290.2,3287.6,0.00394425]
[1768780104791,1.714427,3290.0,3287.6,0.00394425]
[1768780104998,1.714427,3289.8,3287.6,0.00394425]
[1768780105195,1.714427,3289.6,3287.6,0.00394425]
[1768780105406,1.714427,3289.4,3287.6,0.00394425]
[1768780105587,1.714427,3289.2,3287.6,0.00394425]
[1768780105789,1.714427,3289.0,3286.4,0.15219]
[1768780105984,1.02484394,3288.9,3285.4,0.006088]
[1768780106196,1.714427,3288.7,3286.1,1.95117295]
[1768780106501,1.714427,3289.9,3286.8,1.95117295]
[1768780106798,1.714427,3289.9,3287.3,0.15215]
[1768780106986,1.714427,3289.7,3287.3,0.15532546]
[1768780107184,1.714427,3289.3,3287.3,0.00317546]
[1768780107389,1.714427,3288.6,3285.7,3.04]
[1768780107598,1.714427,3288.6,3286.4,0.15219]
[1768780108187,1.714427,3288.6,3286.7,0.15218]
[1768780108389,1.714427,3289.3,3286.7,0.00389152]
[1768780108588,1.714427,3289.3,3287.7,0.15213]
[1768780108988,1.714427,3289.3,3287.5,3.04]
[1768780109189,1.71715728,3290.0,3288.1,0.15211]
[1768780109424,1.714427,3288.8,3286.7,0.00389152]
[1768780109595,1.714427,3288.6,3286.7,0.00389152]
[1768780112398,1.714427,3288.6,3286.7,0.15606152]
[1768780112603,1.714427,3288.6,3286.7,0.00389152]
[1768780113695,1.714427,3288.6,3286.8,3.041]
[1768780114405,1.714427,3288.6,3286.7,0.00389152]
[1768780115403,1.714427,3288.6,3286.8,3.042]
[1768780115804,1.714427,3289.3,3287.4,0.15214]
[1768780115994,1.714427,3289.3,3287.0,1.95117295]
[1768780116196,1.71715728,3290.0,3287.9,0.15212]
[1768780116489,1.71715728,3290.0,3287.8,1.95117295]
[1768780116693,1.71715728,3290.0,3286.7,0.00389152]
[1768780116694,1.71715728,3290.0,3288.0,3.26314175]
[1768780116900,1.71715728,3290.0,3288.1,3.042]
[1768780117099,1.71715728,3290.0,3286.9,3.26314175]
[1768780117100,1.71715728,3290.0,3287.5,3.042]
[1768780117809,1.71715728,3290.0,3287.6,40.8]
[1768780118701,1.71715728,3290.0,3287.7,6.28097982]
[1768780118908,1.71715728,3290.0,3287.3,3.042]
[1768780119206,1.53380934,3289.8,3287.4,3.042]
[1768780119414,0.15206,3289.4,3286.7,0.00389152]
[1768780119597,1.53380934,3289.2,3286.7,0.00389152]
[1768780119902,1.53380934,3288.4,3286.7,0.00389152]
[1768780120102,1.53380934,3288.2,3286.0,3.042]
[1768780120905,1.53380934,3288.2,3285.8,0.15222]
[1768780121100,1.53380934,3288.2,3285.9,40.8]
[1768780121403,1.53380934,3288.2,3286.2,0.1522]
[1768780121592,1.53380934,3288.2,3286.0,3.042]
[1768780121798,1.53380934,3288.2,3286.3,40.8]
[1768780121997,1.53380934,3288.2,3286.6,0.15218]
[1768780122204,1.53380934,3289.7,3286.3,40.8]
[1768780122405,1.53380934,3289.5,3287.2,0.15215]
[1768780122601,1.53380934,3289.5,3286.6,0.15218]
[1768780122905,1.53380934,3289.3,3286.3,40.8]
[1768780123200,1.53380934,3288.5,3285.8,0.00313376]
[1768780123397,1.53380934,3288.3,3285.9,3.042]
[1768780123600,1.53380934,3288.1,3286.0,40.8]
[1768780123797,1.0438297,3288.6,3286.0,40.8]
[1768780123798,1.53380934,3287.9,3286.1,3.042]
[1768780124205,1.53380934,3287.9,3286.0,40.8]
[1768780124418,1.53380934,3287.9,3286.1,3.042]
[1768780124901,1.53380934,3288.6,3286.3,1.95117295]
[1768780125203,1.53380934,3288.6,3286.2,3.17644086]
[1768780125504,1.53380934,3288.6,3286.3,5.694]
[1768780125801,1.53380934,3288.6,3286.7,0.15218]
[1768780126204,1.53380934,3288.6,3286.8,5.694]
[1768780126407,1.0438297,3289.5,3286.8,5.694]
[1768780126705,1.53380934,3289.3,3286.9,2.652]
[1768780127011,1.52772934,3289.1,3286.4,0.15219]
[1768780127199,1.0167024,3289.0,3286.8,2.652]
[1768780127399,1.0167024,3288.9,3286.5,3.042]
[1768780127600,1.0167024,3288.8,3286.4,2.80319]
[1768780127798,1.0167024,3288.7,3286.6,3.042]
[1768780128000,1.0438297,3289.2,3286.7,0.15218]
[1768780128201,1.01680074,3289.1,3286.7,0.15218]
[1768780128399,1.0438297,3289.3,3286.6,3.042]
[1768780128400,1.01680074,3289.0,3286.6,3.042]
[1768780128604,0.00273028,3290.0,3287.9,0.15212]
[1768780128795,0.00273028,3290.0,3287.2,4.99317295]
[1768780128996,0.00273028,3290.0,3288.7,0.15208]
[1768780129206,0.00273028,3290.0,3288.8,5.693]
[1768780129410,0.00273028,3290.0,3288.9,0.15207]
[1768780129811,1.53380934,3290.5,3288.9,0.15207]
[1768780130007,1.53380934,3290.5,3288.8,5.693]
[1768780130411,1.53380934,3290.5,3288.7,0.00268203]
[1768780130711,1.53380934,3290.5,3288.8,5.692]
[1768780130913,1.53707589,3290.5,3288.8,8.9925735]
[1768780131112,1.53707589,3290.5,3289.2,0.15206]
[1768780131410,1.53707589,3290.5,3289.3,5.691]
[1768780131605,0.00326655,3290.5,3289.5,0.15204]
[1768780131807,1.53380934,3291.9,3289.3,7.64217295]
[1768780132000,1.53380934,3291.7,3290.0,0.15202]
[1768780132213,1.53380934,3291.7,3290.1,5.691]
[1768780132404,1.53380934,3291.7,3290.2,5.69]
[1768780132808,1.53671931,3291.7,3290.2,5.69]
[1768780133004,1.02172098,3291.6,3290.2,5.69]
[1768780133207,1.53671931,3291.7,3290.3,3.042]
[1768780133510,1.53671931,3291.7,3290.0,3.042]
[1768780133712,1.31798005,3291.5,3288.6,0.15209]
[1768780133905,1.31798005,3291.3,3288.8,3.042]
[1768780134106,1.31798005,3291.3,3289.5,0.15204]
[1768780134304,1.31798005,3291.3,3289.2,1.95117295]
[1768780134500,0.00290997,3291.7,3289.2,1.95117295]
[1768780134718,1.32089002,3291.7,3289.9,0.15203]
[1768780135012,1.32089002,3291.7,3290.0,0.15202]
[1768780135314,1.31481702,3291.7,3290.0,0.15202]
[1768780135511,1.31481702,3291.7,3290.1,5.689]
[1768780135714,1.31481702,3291.7,3290.2,5.689]
[1768780136111,1.01904988,3291.6,3289.6,40.8]
[1768780136315,0.00381522,3291.7,3289.7,5.69]
[1768780136916,0.00381522,3291.7,3289.6,42.75117295]
[1768780137106,0.00381522,3291.7,3290.4,0.152]
[1768780137307,0.00381522,3291.7,3290.5,0.152]
[1768780138007,1.31798005,3293.3,3290.9,0.15198]
[1768780138309,1.31798005,3293.1,3290.9,0.15198]
[1768780138515,1.31798005,3293.1,3291.0,5.692]
[1768780138816,1.31798005,3293.1,3291.1,5.692]
[1768780139118,1.3218455,3293.1,3291.1,5.69414012]
[1768780139515,1.3218455,3293.1,3291.1,5.84611012]
[1768780139714,1.3218455,3293.1,3291.2,0.15197]
[1768780140014,1.3218455,3293.1,3291.1,5.69414012]
[1768780140211,1.3218455,3293.1,3291.3,40.8]
[1768780140618,1.3218455,3293.1,3291.4,5.69]
[1768780141116,1.3218455,3293.1,3291.3,40.8]
[1768780141311,1.31798005,3292.9,3291.3,5.692]
[1768780141512,1.31798005,3292.7,3291.2,2.652]
[1768780142217,1.31798005,3292.7,3291.2,0.15197]
[1768780142608,1.31798005,3292.7,3291.3,5.692]
[1768780143020,0.78560418,3294.3,3291.7,0.15195]
[1768780143318,0.78560418,3294.8,3291.5,3.042]
[1768780143515,1.02226164,3294.7,3291.6,5.84495]
[1768780143714,0.78560418,3294.5,3291.6,5.84495]
[1768780143911,1.02226164,3294.4,3291.6,5.84495]
[1768780144113,0.00363069,3294.4,3292.1,0.15193]
[1768780144319,0.00363069,3294.4,3292.6,0.1519]
[1768780144517,0.00363069,3294.4,3291.8,0.15194]
[1768780144721,0.00363069,3294.4,3291.9,5.693]
[1768780144922,0.00363069,3294.4,3291.8,0.15194]
[1768780145219,1.31798005,3294.3,3291.9,2.653]
[1768780145412,1.31798005,3294.3,3292.1,0.15193]
[1768780145718,1.31798005,3294.3,3292.3,0.15192]
[1768780146116,1.31798005,3294.3,3291.5,0.15195]
[1768780146312,1.31798005,3293.2,3291.1,0.00214012]
[1768780146709,1.31798005,3292.3,3291.1,0.00214012]
[1768780146910,1.31798005,3292.3,3289.5,0.15204]
[1768780147109,1.31798005,3292.3,3290.5,0.152]
[1768780147311,1.31798005,3293.0,3290.1,1.95117295]
[1768780147507,1.31798005,3293.0,3290.8,1.95117295]
[1768780147710,1.31798005,3293.0,3291.2,0.15197]
[1768780147910,1.31798005,3293.0,3291.3,40.8]
[1768780148109,1.31798005,3293.0,3291.4,5.69]
[1768780148309,1.31798005,3294.3,3291.5,0.15195]
[1768780148824,1.31798005,3294.3,3291.6,5.691]
[1768780149227,1.31798005,3294.3,3291.7,5.691]
[1768780149724,1.31798005,3293.5,3291.4,5.69]
[1768780149926,1.31798005,3293.5,3291.3,40.8]
[1768780150113,1.31798005,3293.3,3291.4,5.691]
[1768780150421,1.31798005,3293.3,3291.5,2.652]
[1768780150625,1.31798005,3292.7,3291.2,2.653]
[1768780151126,1.31798005,3292.6,3291.2,5.692]
[1768780151614,1.31798005,3291.8,3290.8,0.0031899]
[1768780151813,0.00288418,3291.8,3290.8,0.0031899]
[1768780152822,1.31798005,3291.6,3289.5,0.15204]
[1768780153018,1.31798005,3291.2,3289.6,5.692]
[1768780153218,0.00288418,3291.8,3289.7,40.8]
[1768780153419,1.32086423,3291.8,3289.8,5.692]
[1768780153719,1.32086423,3291.8,3289.9,5.693]
[1768780153923,1.32086423,3291.8,3290.1,0.15202]
[1768780154421,0.00288418,3291.8,3289.9,5.69615704]
[1768780155214,0.00288418,3291.8,3290.4,0.152]
[1768780156926,0.00288418,3291.8,3290.5,5.697]
[1768780157516,0.00288418,3291.8,3290.6,5.697]
[1768780158128,0.00288418,3291.8,3290.1,0.15202]
[1768780158329,1.02925454,3291.7,3290.2,5.696]
[1768780158524,1.32086423,3291.8,3290.2,5.696]
[1768780158717,1.02954339,3291.7,3290.2,5.696]
[1768780158922,1.32086423,3291.8,3290.2,5.696]
[1768780159325,1.03026225,3291.7,3290.2,5.696]
[1768780159527,1.31798005,3291.5,3290.3,3.039]
[1768780159728,2.3485189,3291.4,3289.9,0.00315704]
[1768780159935,1.31798005,3291.2,3290.0,2.661]
[1768780160419,0.78352363,3291.7,3290.0,2.661]
[1768780160828,1.31798005,3291.6,3289.9,0.00315704]
[1768780161132,1.03203195,3291.5,3290.0,5.702]
[1768780161430,0.78640781,3291.8,3290.1,0.15202]
[1768780161627,1.03187677,3291.7,3290.4,0.152]
[1768780161831,1.03187677,3291.7,3290.0,5.702]
[1768780161832,1.31798005,3292.1,3290.0,13.788]
[1768780162129,1.31798005,3292.1,3290.7,0.15199]
[1768780162432,0.78352363,3292.4,3290.8,40.95199]
[1768780162831,0.78352363,3292.4,3291.1,0.15197]
[1768780162832,0.00249571,3292.4,3291.1,0.15197]
[1768780163224,0.00249571,3292.4,3291.2,5.704]
[1768780163424,0.00249571,3292.4,3291.1,0.15197]
[1768780163721,0.94641332,3292.2,3290.8,40.8]
[1768780163922,1.03138592,3292.1,3290.9,5.705]
[1768780164133,0.94641332,3292.2,3290.9,5.705]
[1768780164331,0.00249571,3292.4,3290.9,5.705]
[1768780164532,1.03158094,3292.3,3290.9,5.705]
[1768780164720,1.03158094,3292.2,3290.9,5.705]
[1768780164924,0.00249571,3292.4,3290.9,5.705]
[1768780165125,1.03158707,3292.3,3290.9,5.705]
[1768780165334,0.00249571,3292.4,3290.9,5.85698]
[1768780165532,1.03174679,3292.3,3290.9,5.85698]
[1768780165722,0.00249571,3292.4,3291.0,0.15198]
[1768780166429,1.7437185,3292.9,3291.0,0.15198]
[1768780166627,1.03322247,3292.8,3291.0,0.15198]
[1768780166827,1.03322247,3292.7,3291.0,0.15198]
[1768780167028,1.03322247,3292.6,3290.9,5.705]
[1768780167233,0.94641332,3292.9,3291.5,0.15195]
[1768780167433,0.94923434,3292.9,3291.5,0.15195]
[1768780168129,0.00282102,3292.9,3291.6,0.15195]
[1768780168533,1.0438297,3293.9,3291.0,3.52058204]
[1768780168728,1.74578163,3294.3,3291.8,8.086]
[1768780168930,0.79936831,3294.6,3293.1,0.15188]
[1768780169127,0.94641332,3294.7,3293.2,5.711]
[1768780169528,0.94938031,3294.7,3293.4,0.15186]
[1768780169729,0.00296699,3294.7,3293.5,0.15186]
[1768780169936,0.00296699,3294.7,3293.2,0.00313155]
[1768780170139,0.00296699,3294.7,3293.3,5.712]
[1768780170434,0.00296699,3294.7,3293.4,0.15186]
[1768780170826,0.00296699,3294.7,3293.8,0.15185]
[1768780171030,0.00296699,3294.7,3293.3,5.712]
[1768780171031,0.79936831,3295.8,3293.9,0.15184]
[1768780171228,1.88876207,3296.0,3293.9,0.15184]
[1768780171229,0.79936831,3295.9,3293.9,0.15184]
[1768780171428,0.84493237,3296.0,3293.9,0.15184]
[1768780171635,0.79936831,3296.7,3294.0,3.42066545]
[1768780171840,0.79936831,3297.3,3294.9,0.15179]
[1768780172038,0.8015459,3297.3,3294.9,0.15179]
[1768780172430,0.00217759,3297.3,3294.9,0.15179]
[1768780173239,0.00217759,3297.3,3295.0,5.71]
[1768780173634,0.00217759,3297.3,3295.1,3.29745351]
[1768780173836,0.00217759,3297.3,3293.4,5.044]
[1768780173837,0.84493237,3297.0,3293.9,0.15184]
[1768780174035,0.84493237,3296.9,3294.0,5.709]
[1768780174235,0.84493237,3296.9,3294.0,9.00645351]
[1768780174436,0.84493237,3296.8,3294.6,40.8]
[1768780174638,0.84493237,3296.4,3294.7,2.671]
[1768780174841,0.84493237,3297.0,3294.7,2.671]
[1768780175035,0.84493237,3296.9,3294.7,2.671]
[1768780175334,1.32481249,3297.0,3294.8,5.71]
[1768780175335,0.84493237,3296.4,3294.8,5.71]
[1768780175534,0.84493237,3296.2,3294.6,40.8]
[1768780175843,1.32481249,3295.9,3294.6,40.8]
[1768780176036,1.32481249,3296.3,3294.6,40.8]
[1768780176231,1.32481249,3296.0,3294.7,2.675]
[1768780176434,0.79936831,3296.6,3293.4,0.15187]
[1768780176435,0.79936831,3296.3,3293.4,0.15187]
[1768780176739,1.32481249,3295.7,3293.5,4.944]
[1768780176945,0.79936831,3295.8,3293.5,4.944]
[1768780177234,1.32481249,3294.8,3293.2,3.04013155]
[1768780177439,0.0022133,3294.8,3293.3,2.676]
[1768780177641,1.32481249,3294.5,3293.4,2.676]
[1768780177944,1.32481249,3294.4,3293.4,2.676]
[1768780178127,1.32481249,3294.5,3293.4,2.676]
[1768780178633,0.82848684,3294.8,3293.5,5.713]
[1768780178831,0.0022133,3294.8,3293.5,5.713]
[1768780179243,0.82627354,3295.5,3293.5,5.713]
[1768780179834,0.82627354,3295.5,3293.6,0.15186]
[1768780180134,0.82840762,3295.5,3293.7,5.716]
[1768780180335,0.82627354,3295.4,3293.7,5.716]
[1768780180536,0.00213408,3295.5,3293.7,5.716]
[1768780181249,0.82840762,3295.5,3293.6,0.15186]
[1768780181543,0.00213408,3295.5,3293.7,5.716]
[1768780181947,0.00213408,3295.5,3293.9,0.15184]
[1768780182242,0.00213408,3295.5,3293.7,5.716]
[1768780182544,0.00213408,3295.5,3294.1,0.15183]
[1768780183246,0.82627354,3296.7,3294.3,0.15182]
[1768780183540,0.82627354,3297.3,3294.7,0.1518]
[1768780183745,0.82627354,3297.3,3294.8,40.9518]
[1768780184240,0.82627354,3297.1,3294.9,2.8308]
[1768780184454,0.82627354,3297.1,3295.1,0.15179]
[1768780184637,0.82627354,3297.1,3294.8,40.8]
[1768780184841,0.82627354,3296.7,3294.8,40.8]
[1768780185042,0.00352019,3297.3,3294.9,5.716]
[1768780185043,2.15460622,3297.3,3294.9,5.716]
[1768780185250,0.82627354,3297.2,3294.9,5.716]
[1768780186241,0.82627354,3297.2,3295.2,0.15178]
[1768780186442,0.00352019,3297.3,3295.3,0.15178]
[1768780186645,0.82979373,3297.3,3295.4,3.036]
[1768780186838,2.15108603,3297.2,3295.4,5.72]
[1768780187034,1.32481249,3296.8,3295.4,5.72]
[1768780187244,1.32481249,3296.9,3295.5,5.72]
[1768780187640,1.32481249,3296.7,3295.5,5.72]
[1768780187836,1.32481249,3297.0,3295.5,5.72]
[1768780188339,0.82627354,3296.5,3294.8,40.8]
[1768780188532,0.82627354,3296.5,3294.9,2.684]
[1768780188738,1.32481249,3296.3,3294.9,2.684]
[1768780189341,1.32481249,3296.1,3294.9,2.684]
[1768780189645,1.32481249,3296.2,3294.9,2.684]
[1768780190050,1.32481249,3296.1,3294.9,2.684]
[1768780190247,1.32481249,3296.2,3294.9,2.684]
[1768780190639,0.82627354,3296.5,3294.9,2.684]
[1768780190848,0.82627354,3297.0,3294.9,2.8358]
[1768780191048,1.32481249,3296.9,3295.0,0.15179]
[1768780191454,0.82627354,3297.0,3295.0,0.15179]
[1768780191455,2.15108603,3296.8,3295.0,0.15179]